fUSD/lending_fUSD_20240222
["ID","MTS","AMOUNT","RATE_DAILY","PERIOD"]
[314902907,1708625557638,-631.35,0.00034383,4]
[314902908,1708625557647,-500.0,0.00034383,4]
[314902909,1708625557657,-500.0,0.00034383,4]
[314902910,1708625557667,-795.52,0.00034383,4]
[314902911,1708625557677,-6459.32,0.00034383,4]
[314902912,1708625557688,-3708.97,0.00034383,4]
[314902913,1708625557697,-1063.1,0.00034383,4]
[314902914,1708625557706,-833.35,0.00034383,4]
[314902915,1708625557716,-8548.5,0.00034383,4]
[314902916,1708625557725,-619.16,0.00034383,4]
[314902917,1708625557735,-8589.16,0.00034383,4]
[314902918,1708625557745,-559.93,0.00034383,4]
[314902919,1708625557755,-725.96,0.00034383,4]
[314902920,1708625557764,-500.0,0.00034383,4]
[314902921,1708625557774,-885.04,0.00034383,4]
[314902922,1708625557783,-695.88,0.00034383,4]
[314902923,1708625557793,-1152.72,0.00034383,4]
[314902924,1708625557802,-1529.13,0.00034383,4]
[314902925,1708625557812,-3657.93,0.00034383,4]
[314902926,1708625557822,-1521.37,0.00034383,4]
[314902927,1708625557831,-500.0,0.00034383,4]
[314902928,1708625557841,-649.89,0.00034383,4]
[314902929,1708625557851,-500.0,0.00034383,4]
[314902930,1708625557862,-1012.78,0.00034383,4]
[314902931,1708625557871,-500.0,0.00034383,4]
[314902932,1708625557881,-982.4,0.00034383,4]
[314902933,1708625557891,-1281.51,0.00034383,4]
[314902934,1708625557903,-757.3,0.00034383,4]
[314902935,1708625557912,-548.38,0.00034383,4]
[314902936,1708625557921,-753.97,0.00034383,4]
[314902937,1708625557932,-2156.76,0.00034383,4]
[314902938,1708625557941,-2549.51,0.00034383,4]
[314902939,1708625557951,-500.0,0.00034383,4]
[314902940,1708625557960,-2213.41,0.00034383,4]
[314902941,1708625557971,-5006.44,0.00034383,4]
[314902942,1708625557982,-500.0,0.00034383,4]
[314902943,1708625557992,-500.0,0.00034383,4]
[314902944,1708625558001,-4381.7,0.00034383,4]
[314902945,1708625558011,-1083.67,0.00034383,4]
[314902946,1708625558021,-2631.91,0.00034383,4]
[314902947,1708625558031,-928.82,0.00034383,4]
[314902948,1708625558040,-1050.11,0.00034383,4]
[314902949,1708625558050,-988.3,0.00034383,4]
[314902950,1708625558060,-553.85,0.00034383,4]
[314902951,1708625558070,-1569.8,0.00034383,4]
[314902952,1708625558080,-1347.04,0.00034383,4]
[314902953,1708625558089,-1930.76,0.00034383,4]
[314902954,1708625558100,-1578.95,0.00034383,4]
[314902955,1708625558109,-654.06,0.00034383,4]
[314902956,1708625558119,-1152.52,0.00034383,4]
[314902957,1708625558129,-1562.64,0.00034383,4]
[314902958,1708625558139,-13046.67,0.00034383,4]
[314902959,1708625558149,-554.48,0.00034383,4]
[314902960,1708625558159,-5718.46,0.00034383,4]
[314902961,1708625558168,-585.24,0.00034383,4]
[314902962,1708625558178,-4320.81,0.00034383,4]
[314902963,1708625558188,-1143.61,0.00034383,4]
[314902964,1708625558197,-3703.9,0.00034383,4]
[314902965,1708625558207,-500.0,0.00034383,4]
[314902966,1708625558217,-845.41,0.00034383,4]
[314902967,1708625558226,-1239.69,0.00034383,4]
[314902968,1708625558236,-500.0,0.00034383,4]
[314902969,1708625558245,-1082.3,0.00034383,4]
[314902970,1708625558255,-842.27,0.00034383,4]
[314902971,1708625558265,-968.09,0.00034383,4]
[314902972,1708625558439,-2562.83,0.00034383,4]
[314902973,1708625558456,-2763.17,0.00034383,4]
[314902974,1708625558467,-1672.02,0.00034383,4]
[314902975,1708625558477,-500.0,0.00034383,4]
[314902976,1708625558488,-850.13,0.00034383,4]
[314902977,1708625558498,-668.88,0.00034383,4]
[314902978,1708625558507,-1634.02,0.00034383,4]
[314902979,1708625558517,-500.0,0.00034383,4]
[314902980,1708625558526,-3311.96,0.00034383,4]
[314902981,1708625558536,-1279.14,0.00034383,4]
[314902982,1708625558546,-930.33,0.00034383,4]
[314902983,1708625558556,-2625.59,0.00034383,4]
[314902984,1708625558566,-619.14,0.00034383,4]
[314902985,1708625558576,-1635.09,0.00034383,4]
[314902986,1708625558586,-2609.74,0.00034383,4]
[314902987,1708625558596,-3610.42,0.00034383,4]
[314902988,1708625558606,-923.8,0.00034383,4]
[314902989,1708625558615,-1343.66,0.00034383,4]
[314902990,1708625558625,-1380.71,0.00034383,4]
[314902991,1708625558636,-8180.0,0.00034391,2]
[314902992,1708625558646,-19886.0,0.00034391,2]
[314902993,1708625558656,-266.4,0.00034391,2]
[314902994,1708625558666,-3705.462,0.00034391,2]
[314902995,1708625558675,-2933.0,0.00034391,2]
[314902996,1708625558685,-2294.0,0.00034391,2]
[314902997,1708625558695,-1039.0,0.00034391,2]
[314902998,1708625558704,-200.0,0.000344,8]
[314902999,1708625558713,-2211.4613027,0.00034424,2]
[314903000,1708625558723,-151.0,0.00034426,7]
[314903001,1708625558732,-203612.87697,0.00034448,2]
[314903002,1708625558741,-500.0,0.00034517,10]
[314903003,1708625558751,-685.039717,0.0003452,2]
[314903004,1708625558761,-500.0,0.0003452,4]
[314903005,1708625558770,-500.0,0.0003452,4]
[314903006,1708625558780,-41504.670093,0.0003452,2]
[314903007,1708625558789,-4694.694033,0.0003452,2]
[314903008,1708625558799,-500.0,0.0003452,4]
[314903009,1708625558808,-500.0,0.0003452,4]
[314903010,1708625558817,-500.0,0.0003452,4]
[314903011,1708625558827,-500.0,0.0003452,4]
[314903012,1708625558837,-500.0,0.0003452,4]
[314903013,1708625558846,-500.0,0.0003452,4]
[314903014,1708625558856,-500.0,0.0003452,4]
[314903015,1708625558866,-500.0,0.0003452,2]
[314903016,1708625558876,-514.99,0.0003452,4]
[314903017,1708625558889,-555.79,0.0003452,4]
[314903018,1708625558899,-500.0,0.0003452,4]
[314903019,1708625558908,-500.0,0.0003452,4]
[314903020,1708625558918,-641.75,0.0003452,4]
[314903021,1708625558928,-750.74,0.0003452,4]
[314903022,1708625558938,-500.0,0.0003452,4]
[314903023,1708625558948,-500.0,0.0003452,4]
[314903024,1708625558957,-500.0,0.0003452,4]
[314903025,1708625558967,-500.0,0.0003452,4]
[314903026,1708625558978,-542.31,0.0003452,4]
[314903027,1708625558988,-260.85167334,0.0003452,4]
[314903028,1708625558998,-621.21,0.0003452,4]
[314903029,1708625559008,-500.0,0.0003452,4]
[314903030,1708625559018,-500.0,0.0003452,4]
[314903031,1708625559028,-551.07,0.0003452,4]
[314903032,1708625559037,-744.09,0.0003452,4]
[314903033,1708625559047,-500.0,0.0003452,4]
[314903034,1708625559057,-500.0,0.0003452,4]
[314903035,1708625559067,-500.0,0.0003452,4]
[314903036,1708625559077,-573.53,0.0003452,4]
[314903037,1708625559086,-500.0,0.0003452,4]
[314903038,1708625559096,-500.0,0.0003452,4]
[314903039,1708625559106,-500.0,0.0003452,4]
[314903040,1708625559115,-500.0,0.0003452,4]
[314903041,1708625559125,-500.0,0.0003452,4]
[314903042,1708625559134,-500.0,0.0003452,4]
[314903043,1708625559144,-524.07,0.0003452,4]
[314903044,1708625559154,-951.85,0.0003452,4]
[314903045,1708625559164,-500.0,0.0003452,4]
[314903046,1708625559174,-926.28,0.0003452,4]
[314903047,1708625559183,-529.22,0.0003452,4]
[314903048,1708625559193,-500.0,0.0003452,4]
[314903049,1708625559203,-744.11,0.0003452,4]
[314903050,1708625559213,-500.0,0.0003452,4]
[314903051,1708625559223,-500.0,0.0003452,4]
[314903052,1708625559233,-1143.73,0.0003452,4]
[314903053,1708625559242,-500.0,0.0003452,4]
[314903054,1708625559251,-500.0,0.0003452,4]
[314903055,1708625559262,-779.36,0.0003452,4]
[314903056,1708625559271,-635.41,0.0003452,4]
[314903057,1708625559281,-555.19,0.0003452,4]
[314903058,1708625559291,-308.7936472,0.0003452,4]
[314903059,1708625559301,-500.0,0.0003452,4]
[314903060,1708625559311,-822.26,0.0003452,4]
[314903061,1708625559321,-769.66,0.0003452,4]
[314903062,1708625559331,-500.0,0.0003452,4]
[314903063,1708625559341,-889.62,0.0003452,4]
[314903064,1708625559351,-634.08,0.0003452,4]
[314903065,1708625559361,-500.0,0.0003452,4]
[314903066,1708625559370,-567.01,0.0003452,4]
[314903067,1708625559380,-721.11,0.0003452,4]
[314903068,1708625559390,-653.98,0.0003452,4]
[314903069,1708625559399,-659.59,0.0003452,4]
[314903070,1708625559410,-951.61,0.0003452,4]
[314903071,1708625559419,-627.93,0.0003452,4]
[314903072,1708625559430,-677.11,0.0003452,4]
[314903073,1708625559439,-668.92,0.0003452,4]
[314903074,1708625559449,-746.18,0.0003452,4]
[314903075,1708625559458,-655.97,0.0003452,4]
[314903076,1708625559468,-500.0,0.0003452,4]
[314903077,1708625559478,-944.62,0.0003452,4]
[314903078,1708625559487,-1016.3,0.0003452,4]
[314903079,1708625559498,-500.0,0.0003452,4]
[314903080,1708625559507,-500.0,0.0003452,4]
[314903081,1708625559517,-500.0,0.0003452,4]
[314903082,1708625559526,-804.18,0.0003452,4]
[314903083,1708625559536,-535.66,0.0003452,4]
[314903084,1708625559546,-936.27,0.0003452,4]
[314903085,1708625559556,-500.0,0.0003452,4]
[314903086,1708625559566,-573.6,0.0003452,4]
[314903087,1708625559576,-573.73,0.0003452,4]
[314903088,1708625559585,-906.98,0.0003452,4]
[314903089,1708625559595,-625.48,0.0003452,4]
[314903090,1708625559605,-619.25,0.0003452,4]
[314903091,1708625559616,-802.24,0.0003452,4]
[314903092,1708625559626,-553.85,0.0003452,4]
[314903093,1708625559636,-951.64,0.0003452,4]
[314903094,1708625559646,-500.0,0.0003452,4]
[314903095,1708625559656,-694.67,0.0003452,4]
[314903096,1708625559667,-991.06,0.0003452,4]
[314903097,1708625559677,-676.95,0.0003452,4]
[314903098,1708625559686,-500.0,0.0003452,4]
[314903099,1708625559695,-764.63,0.0003452,4]
[314903100,1708625559705,-508.78,0.0003452,4]
[314903101,1708625559715,-500.0,0.0003452,4]
[314903102,1708625559725,-802.5,0.0003452,4]
[314903103,1708625559735,-664.95,0.0003452,4]
[314903104,1708625559744,-692.13,0.0003452,4]
[314903105,1708625559754,-632.57,0.0003452,4]
[314903106,1708625559763,-509.92,0.0003452,4]
[314903107,1708625559773,-500.0,0.0003452,4]
[314903108,1708625559782,-607.02,0.0003452,4]
[314903109,1708625559791,-792.22,0.0003452,4]
[314903110,1708625559801,-500.0,0.0003452,4]
[314903111,1708625559811,-1057.84,0.0003452,4]
[314903112,1708625559821,-967.9,0.0003452,4]
[314903113,1708625559831,-500.0,0.0003452,4]
[314903114,1708625559841,-1015.71,0.0003452,4]
[314903115,1708625559851,-500.0,0.0003452,4]
[314903116,1708625559860,-500.0,0.0003452,4]
[314903117,1708625559869,-1057.91,0.0003452,4]
[314903118,1708625559879,-1562.84,0.0003452,4]
[314903119,1708625559889,-908.7,0.0003452,4]
[314903120,1708625559903,-574.22,0.0003452,4]
[314903121,1708625559913,-1195.95,0.0003452,4]
[314903122,1708625559923,-711.8,0.0003452,4]
[314903123,1708625559932,-500.0,0.0003452,4]
[314903124,1708625559943,-690.36,0.0003452,4]
[314903125,1708625559953,-582.2,0.0003452,4]
[314903126,1708625559962,-623.27,0.0003452,4]
[314903127,1708625559972,-643.93,0.0003452,4]
[314903128,1708625559983,-808.11,0.0003452,4]
[314903129,1708625559992,-500.0,0.0003452,4]
[314903130,1708625560002,-955.15,0.0003452,4]
[314903131,1708625560011,-500.0,0.0003452,2]
[314903132,1708625560021,-520.41,0.0003452,4]
[314903133,1708625560031,-500.0,0.0003452,4]
[314903134,1708625560040,-642.76,0.0003452,4]
[314903135,1708625560050,-500.0,0.0003452,4]
[314903136,1708625560059,-500.0,0.0003452,4]
[314903137,1708625560069,-500.0,0.0003452,4]
[314903138,1708625560078,-814.72,0.0003452,4]
[314903139,1708625560087,-763.81,0.0003452,4]
[314903140,1708625560096,-920.28,0.0003452,4]
[314903141,1708625560106,-595.79,0.0003452,4]
[314903142,1708625560115,-616.74,0.0003452,4]
[314903143,1708625560124,-693.29,0.0003452,4]
[314903144,1708625560134,-500.0,0.0003452,4]
[314903145,1708625560143,-970.8,0.0003452,4]
[314903146,1708625560153,-523.23,0.0003452,4]
[314903147,1708625560162,-704.13,0.0003452,4]
[314903148,1708625560171,-569.97,0.0003452,4]
[314903149,1708625560181,-552.1,0.0003452,4]
[314903150,1708625560190,-546.34,0.0003452,4]
[314903151,1708625560199,-500.0,0.0003452,4]
[314903152,1708625560209,-597.14,0.0003452,4]
[314903153,1708625560218,-936.39,0.0003452,4]
[314903154,1708625560229,-500.0,0.0003452,4]
[314903155,1708625560238,-500.0,0.0003452,4]
[314903156,1708625560248,-500.0,0.0003452,4]
[314903157,1708625560258,-1322.67,0.0003452,4]
[314903158,1708625560267,-513.58,0.0003452,4]
[314903159,1708625560276,-500.0,0.0003452,4]
[314903160,1708625560286,-500.0,0.0003452,4]
[314903161,1708625560295,-500.0,0.0003452,4]
[314903162,1708625560305,-652.66,0.0003452,4]
[314903163,1708625560314,-905.48,0.0003452,4]
[314903164,1708625560324,-902.91,0.0003452,4]
[314903165,1708625560334,-557.25008869,0.0003452,4]
[314903166,1708625560343,-577.69,0.0003452,4]
[314903167,1708625560353,-500.0,0.0003452,4]
[314903168,1708625560363,-1566.96,0.0003452,4]
[314903169,1708625560373,-500.0,0.0003452,4]
[314903170,1708625560383,-885.89,0.0003452,4]
[314903171,1708625560393,-567.92,0.0003452,4]
[314903172,1708625560403,-642.58,0.0003452,4]
[314903173,1708625560414,-851.67,0.0003452,4]
[314903174,1708625560424,-500.0,0.0003452,2]
[314903175,1708625560434,-572.75,0.0003452,4]
[314903176,1708625560444,-583.46,0.0003452,4]
[314903177,1708625560453,-1131.89,0.0003452,4]
[314903178,1708625560463,-500.0,0.0003452,4]
[314903179,1708625560472,-500.0,0.0003452,4]
[314903180,1708625560482,-568.65,0.0003452,4]
[314903181,1708625560492,-500.0,0.0003452,4]
[314903182,1708625560501,-1313.43,0.0003452,4]
[314903183,1708625560511,-3828.9,0.0003452,4]
[314903184,1708625560521,-1312.47,0.0003452,4]
[314903185,1708625560531,-500.0,0.0003452,4]
[314903186,1708625560541,-637.56,0.0003452,4]
[314903187,1708625560551,-500.0,0.0003452,4]
[314903188,1708625560560,-771.01,0.0003452,4]
[314903189,1708625560570,-670.32,0.0003452,4]
[314903190,1708625560580,-905.48,0.0003452,4]
[314903191,1708625560884,-587.38,0.0003452,4]
[314903192,1708625560905,-500.0,0.0003452,4]
[314903193,1708625560916,-500.0,0.0003452,4]
[314903194,1708625560926,-500.0,0.0003452,4]
[314903195,1708625560935,-500.0,0.0003452,4]
[314903196,1708625560945,-1115.25,0.0003452,4]
[314903197,1708625560956,-500.0,0.0003452,4]
[314903198,1708625560966,-617.27,0.0003452,4]
[314903199,1708625560976,-920.63,0.0003452,4]
[314903200,1708625560987,-1239.94,0.0003452,4]
[314903201,1708625560997,-1030.29,0.0003452,4]
[314903202,1708625561006,-500.0,0.0003452,4]
[314903203,1708625561015,-500.0,0.0003452,4]
[314903204,1708625561024,-799.98,0.0003452,4]
[314903205,1708625561033,-728.76,0.0003452,4]
[314903206,1708625561043,-500.0,0.0003452,4]
[314903207,1708625561052,-741.55,0.0003452,4]
[314903208,1708625561062,-617.56,0.0003452,4]
[314903209,1708625561071,-664.22,0.0003452,4]
[314903210,1708625561082,-582.0,0.0003452,4]
[314903211,1708625561092,-500.0,0.0003452,4]
[314903212,1708625561102,-541.78,0.0003452,4]
[314903213,1708625561111,-764.35,0.0003452,4]
[314903214,1708625561122,-500.0,0.0003452,4]
[314903215,1708625561132,-1242.24,0.0003452,4]
[314903216,1708625561142,-1041.1,0.0003452,4]
[314903217,1708625561151,-1494.6,0.0003452,4]
[314903218,1708625561160,-500.0,0.0003452,4]
[314903219,1708625561169,-500.0,0.0003452,4]
[314903220,1708625561180,-983.44,0.0003452,4]
[314903221,1708625561189,-871.52,0.0003452,4]
[314903222,1708625561198,-937.84,0.0003452,4]
[314903223,1708625561207,-500.0,0.0003452,4]
[314903224,1708625561217,-500.0,0.0003452,4]
[314903225,1708625561226,-940.94,0.0003452,4]
[314903226,1708625561236,-561.29763824,0.0003452,4]
[314903227,1708625561246,-988.42,0.0003452,4]
[314903228,1708625561255,-900.68,0.0003452,4]
[314903229,1708625561265,-1267.73,0.0003452,4]
[314903230,1708625561274,-598.66,0.0003452,4]
[314903231,1708625561283,-1407.88,0.0003452,4]
[314903232,1708625561293,-500.0,0.0003452,4]
[314903233,1708625561303,-1015.51,0.0003452,4]
[314903234,1708625561312,-500.0,0.0003452,4]
[314903235,1708625561322,-500.0,0.0003452,4]
[314903236,1708625561332,-824.67,0.0003452,4]
[314903237,1708625561341,-1044.83,0.0003452,4]
[314903238,1708625561351,-625.15,0.0003452,4]
[314903239,1708625561360,-848.25,0.0003452,4]
[314903240,1708625561370,-715.27,0.0003452,4]
[314903241,1708625561380,-500.0,0.0003452,4]
[314903242,1708625561390,-500.0,0.0003452,4]
[314903243,1708625561400,-979.83,0.0003452,4]
[314903244,1708625561413,-500.0,0.0003452,4]
[314903245,1708625561423,-1292.8,0.0003452,4]
[314903246,1708625561434,-651.21,0.0003452,4]
[314903247,1708625561444,-709.91,0.0003452,4]
[314903248,1708625561454,-579.59,0.0003452,4]
[314903249,1708625561464,-1259.45,0.0003452,4]
[314903250,1708625561474,-695.7,0.0003452,4]
[314903251,1708625561484,-972.69,0.0003452,4]
[314903252,1708625561493,-500.0,0.0003452,4]
[314903253,1708625561503,-500.0,0.0003452,4]
[314903254,1708625561512,-1106.66,0.0003452,4]
[314903255,1708625561521,-500.0,0.0003452,4]
[314903256,1708625561531,-1263.76,0.0003452,4]
[314903257,1708625561542,-500.0,0.0003452,4]
[314903258,1708625561552,-1595.37,0.0003452,4]
[314903259,1708625561562,-535.25,0.0003452,4]
[314903260,1708625561571,-1321.09,0.0003452,4]
[314903261,1708625561581,-841.52,0.0003452,4]
[314903262,1708625561591,-593.4,0.0003452,4]
[314903263,1708625561601,-1083.33,0.0003452,4]
[314903264,1708625561610,-1312.31,0.0003452,4]
[314903265,1708625561619,-1322.97,0.0003452,4]
[314903266,1708625561629,-6861.46,0.0003452,4]
[314903267,1708625561639,-500.0,0.0003452,4]
[314903268,1708625561649,-7508.74,0.0003452,4]
[314903269,1708625561659,-500.0,0.0003452,4]
[314903270,1708625561668,-2188.57,0.0003452,4]
[314903271,1708625561678,-640.5,0.0003452,4]
[314903272,1708625561687,-1556.17,0.0003452,2]
[314903273,1708625561697,-931.24,0.0003452,4]
[314903274,1708625561707,-1521.19,0.0003452,4]
[314903275,1708625561716,-579.67,0.0003452,4]
[314903276,1708625561726,-1367.32,0.0003452,4]
[314903277,1708625561737,-500.0,0.0003452,4]
[314903278,1708625561746,-500.0,0.0003452,4]
[314903279,1708625561755,-3289.02,0.0003452,4]
[314903280,1708625561765,-1435.75,0.0003452,4]
[314903281,1708625561774,-670.88,0.0003452,4]
[314903282,1708625561784,-7764.94,0.0003452,4]
[314903283,1708625561793,-1463.74,0.0003452,4]
[314903284,1708625561803,-500.0,0.0003452,4]
[314903285,1708625561812,-500.0,0.0003452,4]
[314903286,1708625561822,-2618.09,0.0003452,4]
[314903287,1708625561832,-500.0,0.0003452,4]
[314903288,1708625561841,-571.38,0.0003452,4]
[314903289,1708625561850,-1754.26,0.0003452,4]
[314903290,1708625561860,-905.05,0.0003452,4]
[314903291,1708625561870,-1224.57,0.0003452,4]
[314903292,1708625561880,-1412.23,0.0003452,4]
[314903293,1708625561894,-1295.05,0.0003452,4]
[314903294,1708625561904,-2025.9,0.0003452,4]
[314903295,1708625561914,-734.04,0.0003452,4]
[314903296,1708625561923,-16810.08,0.0003452,4]
[314903297,1708625561934,-3953.01,0.0003452,4]
[314903298,1708625561943,-441.52434679,0.0003452,4]
[314903299,1708625561952,-1357.88,0.0003452,4]
[314903300,1708625561962,-500.0,0.0003452,4]
[314903301,1708625561971,-523.91,0.0003452,4]
[314903302,1708625561982,-624.1171858,0.0003452,4]
[314903303,1708625561994,-500.0,0.0003452,4]
[314903304,1708625562003,-1306.91,0.0003452,4]
[314903305,1708625562013,-1319.7,0.0003452,4]
[314903306,1708625562022,-2921.05,0.0003452,4]
[314903307,1708625562032,-3520.12,0.0003452,4]
[314903308,1708625562042,-1203.69,0.0003452,4]
[314903309,1708625562051,-4012.02,0.0003452,4]
[314903310,1708625562060,-7422.46,0.0003452,4]
[314903311,1708625562070,-2325.63,0.0003452,4]
[314903312,1708625562080,-595.22,0.0003452,4]
[314903313,1708625562089,-578.71,0.0003452,4]
[314903314,1708625562098,-896.84,0.0003452,4]
[314903315,1708625562108,-500.0,0.0003452,4]
[314903316,1708625562117,-579.72,0.0003452,4]
[314903317,1708625562127,-500.0,0.0003452,4]
[314903318,1708625562136,-802.17,0.0003452,4]
[314903319,1708625562146,-999.86,0.0003452,4]
[314903320,1708625562155,-2641.23,0.0003452,4]
[314903321,1708625562165,-500.0,0.0003452,4]
[314903322,1708625562174,-3363.68,0.0003452,4]
[314903323,1708625562183,-2799.21,0.0003452,4]
[314903324,1708625562193,-500.0,0.0003452,4]
[314903325,1708625562202,-500.0,0.0003452,4]
[314903326,1708625562211,-522.87,0.0003452,4]
[314903327,1708625562220,-879.41,0.0003452,4]
[314903328,1708625562229,-922.6,0.0003452,4]
[314903329,1708625562239,-1225.83,0.0003452,4]
[314903330,1708625562248,-7827.29,0.0003452,4]
[314903331,1708625562257,-708.41,0.0003452,4]
[314903332,1708625562267,-4523.83,0.0003452,4]
[314903333,1708625562277,-1375.3,0.0003452,4]
[314903334,1708625562286,-4862.62,0.0003452,4]
[314903335,1708625562295,-735.21,0.0003452,4]
[314903336,1708625562304,-757.98,0.0003452,4]
[314903337,1708625562313,-346.61,0.0003452,4]
[314903338,1708625562323,-500.0,0.0003452,4]
[314903339,1708625562332,-3270.53,0.0003452,4]
[314903340,1708625562342,-876.68,0.0003452,4]
[314903341,1708625562351,-2130.22,0.0003452,4]
[314903342,1708625562360,-3006.31,0.0003452,4]
[314903343,1708625562369,-5087.25,0.0003452,4]
[314903344,1708625562378,-869.35,0.0003452,4]
[314903345,1708625562388,-500.0,0.0003452,4]
[314903346,1708625562398,-1701.19,0.0003452,4]
[314903347,1708625562407,-1542.31,0.0003452,4]
[314903348,1708625562418,-1144.38,0.0003452,4]
[314903349,1708625562428,-10191.48,0.0003452,4]
[314903350,1708625562438,-14297.7,0.0003452,4]
[314903351,1708625562448,-870.84,0.0003452,4]
[314903352,1708625562458,-1739.37,0.0003452,4]
[314903353,1708625562468,-577.13453875,0.0003452,4]
[314903354,1708625562478,-1219.49,0.0003452,4]
[314903355,1708625562488,-500.0,0.0003452,4]
[314903356,1708625562498,-662.36,0.0003452,4]
[314903357,1708625562507,-5320.7,0.0003452,4]
[314903358,1708625562517,-1389.1,0.0003452,4]
[314903359,1708625562527,-1178.0,0.0003452,4]
[314903360,1708625562536,-500.0,0.0003452,4]
[314903361,1708625562545,-4535.27,0.0003452,4]
[314903362,1708625562555,-1510.56,0.0003452,4]
[314903363,1708625562564,-574.08,0.0003452,4]
[314903364,1708625562574,-913.43,0.0003452,4]
[314903365,1708625562583,-957.57,0.0003452,4]
[314903366,1708625562593,-1132.71,0.0003452,4]
[314903367,1708625562603,-1840.14,0.0003452,4]
[314903368,1708625562613,-500.0,0.0003452,4]
[314903369,1708625562623,-500.0,0.0003452,4]
[314903370,1708625562633,-1105.16,0.0003452,4]
[314903371,1708625562644,-8688.16,0.0003452,4]
[314903372,1708625562653,-856.33,0.0003452,4]
[314903373,1708625562663,-1035.38,0.0003452,4]
[314903374,1708625562673,-500.0,0.0003452,4]
[314903375,1708625562683,-597.54,0.0003452,4]
[314903376,1708625562692,-1031.07,0.0003452,4]
[314903377,1708625562702,-607.73,0.0003452,4]
[314903378,1708625562711,-4152.62,0.0003452,4]
[314903379,1708625562721,-4573.59,0.0003452,4]
[314903380,1708625562730,-5220.29,0.0003452,4]
[314903381,1708625562740,-1750.52,0.0003452,4]
[314903382,1708625562750,-500.0,0.0003452,4]
[314903383,1708625562760,-740.42,0.0003452,4]
[314903384,1708625562769,-543.8,0.0003452,4]
[314903385,1708625562779,-579.71,0.0003452,4]
[314903386,1708625562789,-27929.76,0.0003452,4]
[314903387,1708625562799,-500.0,0.0003452,4]
[314903388,1708625562808,-769.4,0.0003452,4]
[314903389,1708625562817,-500.0,0.0003452,4]
[314903390,1708625562827,-3104.43,0.0003452,4]
[314903391,1708625562836,-500.0,0.0003452,4]
[314903392,1708625562845,-31733.49,0.0003452,4]
[314903393,1708625562855,-763.62,0.0003452,4]
[314903394,1708625562864,-2557.13,0.0003452,4]
[314903395,1708625562873,-2617.91,0.0003452,4]
[314903396,1708625562883,-635.4,0.0003452,4]
[314903397,1708625562894,-10076.31,0.0003452,4]
[314903398,1708625562905,-1402.56,0.0003452,4]
[314903399,1708625562914,-500.0,0.0003452,4]
[314903400,1708625562923,-719.16,0.0003452,4]
[314903401,1708625562933,-549.71,0.0003452,4]
[314903402,1708625562943,-815.24,0.0003452,4]
[314903403,1708625562952,-540.22,0.0003452,4]
[314903404,1708625562961,-10365.29,0.0003452,4]
[314903405,1708625562971,-1908.5,0.0003452,4]
[314903406,1708625562980,-500.0,0.0003452,4]